[Event "Elite Hotels Open 2023"]
[Site "Elite Stadshotellet, Kungsgatan 6, Vaxjo, Sweden"]
[Date "2023.02.12"]
[Round "7.4"]
[White "Kucuksari, Kaan"]
[Black "Kristensen, Kaare Hove"]
[Result "1/2-1/2"]
[TimeControl "15 minutes + 5 seconds per move from move one (Round 1 - 4) / 90 minutes + 30 seconds per move from move one (Round 5 - 8)"]
[WhiteTitle "IM"]
[BlackTitle "IM"]
[WhiteFideId "6380166"]
[BlackFideId "1400940"]
[WhiteElo "2507"]
[BlackElo "2210"]

1. d4 {[%clk 01:30:51]} {[%emt 00:00:08]} d5 {[%clk 01:30:50]} {[%emt
00:00:10]} 2. Nf3 {[%clk 01:31:15]} {[%emt 00:00:06]} c6 {[%clk 01:29:47]}
{[%emt 00:01:32]} 3. Bf4 {[%clk 01:31:38]} {[%emt 00:00:08]} Nf6 {[%clk
01:28:08]} {[%emt 00:02:10]} 4. e3 {[%clk 01:30:57]} {[%emt 00:01:11]} Bg4
{[%clk 01:19:15]} {[%emt 00:09:22]} 5. c4 {[%clk 01:29:31]} {[%emt 00:01:57]}
Nbd7 {[%clk 01:07:19]} {[%emt 00:12:25]} 6. Nc3 {[%clk 01:29:24]} {[%emt
00:00:39]} e6 {[%clk 01:07:21]} {[%emt 00:00:27]} 7. h3 {[%clk 01:26:11]}
{[%emt 00:03:43]} Bxf3 {[%clk 01:06:14]} {[%emt 00:01:36]} 8. Qxf3 {[%clk
01:26:30]} {[%emt 00:00:12]} Bb4 {[%clk 01:05:05]} {[%emt 00:01:39]} 9. Qd1
{[%clk 01:25:46]} {[%emt 00:01:14]} Qa5 {[%clk 00:59:13]} {[%emt 00:06:21]} 10.
Qb3 {[%clk 01:26:09]} {[%emt 00:00:08]} Ne4 {[%clk 00:40:15]} {[%emt 00:19:27]}
11. Rc1 {[%clk 01:26:34]} {[%emt 00:00:06]} Nb6 {[%clk 00:39:04]} {[%emt
00:01:41]} 12. f3 {[%clk 01:13:56]} {[%emt 00:13:08]} dxc4 {[%clk 00:33:33]}
{[%emt 00:06:00]} 13. Bxc4 {[%clk 01:14:15]} {[%emt 00:00:12]} Nxc4 {[%clk
00:33:01]} {[%emt 00:01:01]} 14. Qxc4 {[%clk 01:14:43]} {[%emt 00:00:02]} Nd6
{[%clk 00:26:55]} {[%emt 00:06:36]} 15. Qb3 {[%clk 01:12:35]} {[%emt 00:02:39]}
b5 {[%clk 00:15:59]} {[%emt 00:11:26]} 16. Bxd6 {[%clk 01:05:10]} {[%emt
00:07:55]} Bxd6 {[%clk 00:16:20]} {[%emt 00:00:08]} 17. O-O {[%clk 01:02:35]}
{[%emt 00:03:05]} Qb4 {[%clk 00:13:42]} {[%emt 00:03:08]} 18. Qc2 {[%clk
00:58:29]} {[%emt 00:04:37]} Rc8 {[%clk 00:13:06]} {[%emt 00:01:06]} 19. Ne4
{[%clk 00:49:47]} {[%emt 00:09:12]} Be7 {[%clk 00:13:04]} {[%emt 00:00:31]} 20.
Rfd1 {[%clk 00:46:10]} {[%emt 00:04:08]} O-O {[%clk 00:13:04]} {[%emt
00:00:30]} 21. a3 {[%clk 00:42:39]} {[%emt 00:04:01]} Qa5 {[%clk 00:12:21]}
{[%emt 00:01:12]} 22. Rd3 {[%clk 00:43:04]} {[%emt 00:00:05]} b4 {[%clk
00:09:03]} {[%emt 00:03:48]} 23. axb4 {[%clk 00:36:46]} {[%emt 00:06:49]} Bxb4
{[%clk 00:08:55]} {[%emt 00:00:38]} 24. Rb3 {[%clk 00:35:56]} {[%emt 00:01:19]}
h6 {[%clk 00:07:24]} {[%emt 00:02:01]} 25. Qc4 {[%clk 00:34:16]} {[%emt
00:02:11]} Rb8 {[%clk 00:07:07]} {[%emt 00:00:47]} 26. Qxc6 {[%clk 00:32:56]}
{[%emt 00:01:49]} Qa2 {[%clk 00:05:15]} {[%emt 00:02:23]} 27. Qc2 {[%clk
00:31:09]} {[%emt 00:02:16]} f5 {[%clk 00:03:20]} {[%emt 00:02:24]} 28. Qc4
{[%clk 00:12:54]} {[%emt 00:18:45]} fxe4 {[%clk 00:03:31]} {[%emt 00:00:19]} 29.
Rxb4 {[%clk 00:13:19]} {[%emt 00:00:05]} Qxc4 {[%clk 00:03:52]} {[%emt
00:00:09]} 30. Rcxc4 {[%clk 00:13:41]} {[%emt 00:00:08]} Rxb4 31. Rxb4 {[%clk
00:14:10]} exf3 {[%clk 00:03:56]} {[%emt 00:00:08]} 32. Rb7 {[%clk 00:11:24]}
{[%emt 00:03:16]} fxg2 {[%clk 00:04:07]} {[%emt 00:00:18]} 33. Rxa7 {[%clk
00:11:12]} {[%emt 00:00:43]} Rf3 {[%clk 00:03:01]} {[%emt 00:01:36]} 34. Ra3
{[%clk 00:11:09]} {[%emt 00:00:33]} Rxh3 {[%clk 00:02:52]} {[%emt 00:00:39]} 35.
Kxg2 {[%clk 00:11:37]} {[%emt 00:00:02]} Rh5 {[%clk 00:03:09]} {[%emt
00:00:12]} 36. Ra8+ {[%clk 00:08:05]} {[%emt 00:04:03]} Kf7 {[%clk 00:03:32]}
{[%emt 00:00:08]} 37. Rb8 {[%clk 00:08:27]} {[%emt 00:00:07]} Rg5+ {[%clk
00:03:20]} {[%emt 00:00:43]} 38. Kf3 {[%clk 00:08:55]} {[%emt 00:00:02]} h5
{[%clk 00:03:25]} {[%emt 00:00:24]} 39. e4 {[%clk 00:07:05]} {[%emt 00:02:21]}
h4 {[%clk 00:03:25]} {[%emt 00:00:28]} 40. b4 {[%clk 00:02:50]} {[%emt
00:04:46]} h3 {[%clk 00:02:30]} {[%emt 00:01:25]} 41. Rh8 {[%clk 00:02:51]}
{[%emt 00:00:30]} Rb5 {[%clk 00:02:48]} {[%emt 00:00:11]} 1/2-1/2

[Event "Elite Hotels Open 2023"]
[Site "Elite Stadshotellet, Kungsgatan 6, Vaxjo, Sweden"]
[Date "2023.02.12"]
[Round "7.5"]
[White "Trost, Edvin"]
[Black "Hector, Jonny"]
[Result "1/2-1/2"]
[TimeControl "15 minutes + 5 seconds per move from move one (Round 1 - 4) / 90 minutes + 30 seconds per move from move one (Round 5 - 8)"]
[WhiteTitle "FM"]
[BlackTitle "GM"]
[WhiteFideId "1729519"]
[BlackFideId "1700090"]
[WhiteElo "2364"]
[BlackElo "2466"]

1. d4 {[%clk 01:30:57]} {[%emt 00:00:03]} d5 {[%clk 01:30:52]} {[%emt
00:00:08]} 2. c4 {[%clk 01:30:21]} {[%emt 00:01:08]} c6 {[%clk 01:31:17]}
{[%emt 00:00:04]} 3. Nf3 {[%clk 01:30:46]} {[%emt 00:00:05]} Nf6 {[%clk
01:31:31]} {[%emt 00:00:15]} 4. e3 {[%clk 01:27:22]} {[%emt 00:03:54]} Bf5
{[%clk 01:31:40]} {[%emt 00:00:19]} 5. Nc3 {[%clk 01:27:45]} {[%emt 00:00:09]}
e6 {[%clk 01:31:59]} {[%emt 00:00:11]} 6. Nh4 {[%clk 01:28:03]} {[%emt
00:00:13]} Be4 {[%clk 01:32:12]} {[%emt 00:00:15]} 7. f3 {[%clk 01:28:27]}
{[%emt 00:00:07]} Bg6 {[%clk 01:32:35]} {[%emt 00:00:06]} 8. Bd2 {[%clk
01:28:48]} {[%emt 00:00:10]} Nbd7 {[%clk 01:30:29]} {[%emt 00:02:35]} 9. cxd5
{[%clk 01:27:51]} {[%emt 00:01:28]} exd5 {[%clk 01:28:38]} {[%emt 00:02:21]} 10.
Qb3 {[%clk 01:24:48]} {[%emt 00:03:34]} b5 {[%clk 01:24:39]} {[%emt 00:04:29]}
11. Nxg6 {[%clk 01:18:04]} {[%emt 00:07:13]} hxg6 {[%clk 01:24:55]} {[%emt
00:00:13]} 12. O-O-O {[%clk 01:17:59]} {[%emt 00:00:36]} Be7 {[%clk 01:19:40]}
{[%emt 00:05:44]} 13. Kb1 {[%clk 01:12:47]} {[%emt 00:05:43]} Nb6 {[%clk
01:14:23]} {[%emt 00:05:47]} 14. Qc2 {[%clk 01:02:14]} {[%emt 00:11:03]} Nc4
{[%clk 01:07:37]} {[%emt 00:07:16]} 15. Bc1 {[%clk 00:59:58]} {[%emt 00:02:46]}
a5 {[%clk 00:56:39]} {[%emt 00:11:28]} 16. e4 {[%clk 00:57:05]} {[%emt
00:03:24]} O-O {[%clk 00:53:29]} {[%emt 00:03:38]} 17. e5 {[%clk 00:54:35]}
{[%emt 00:03:01]} Nd7 {[%clk 00:49:48]} {[%emt 00:04:10]} 18. h4 {[%clk
00:53:56]} {[%emt 00:01:10]} Ndb6 {[%clk 00:35:43]} {[%emt 00:14:34]} 19. f4
{[%clk 00:45:52]} {[%emt 00:08:34]} b4 {[%clk 00:29:15]} {[%emt 00:06:58]} 20.
Na4 {[%clk 00:43:56]} {[%emt 00:02:26]} Nxa4 {[%clk 00:29:19]} {[%emt
00:00:26]} 21. Qxa4 {[%clk 00:44:07]} {[%emt 00:00:18]} Qd7 {[%clk 00:28:26]}
{[%emt 00:01:23]} 22. Qc2 {[%clk 00:34:02]} {[%emt 00:10:36]} a4 {[%clk
00:28:29]} {[%emt 00:00:27]} 23. Bxc4 {[%clk 00:33:19]} {[%emt 00:01:14]} dxc4
{[%clk 00:28:55]} {[%emt 00:00:03]} 24. Qxc4 {[%clk 00:33:38]} {[%emt
00:00:11]} b3 {[%clk 00:27:50]} {[%emt 00:01:35]} 25. a3 {[%clk 00:21:45]}
{[%emt 00:12:24]} Rfd8 {[%clk 00:25:13]} {[%emt 00:03:05]} 26. Qd3 {[%clk
00:15:26]} {[%emt 00:06:50]} Qg4 {[%clk 00:21:47]} {[%emt 00:03:54]} 27. Qe4
{[%clk 00:06:39]} {[%emt 00:09:18]} Rd5 {[%clk 00:20:22]} {[%emt 00:01:55]} 28.
Be3 {[%clk 00:02:08]} {[%emt 00:05:02]} Rad8 {[%clk 00:19:31]} {[%emt
00:01:20]} 29. Bf2 {[%clk 00:01:01]} {[%emt 00:01:38]} c5 {[%clk 00:19:28]}
{[%emt 00:00:33]} 30. Rd3 {[%clk 00:01:30]} {[%emt 00:00:01]} cxd4 {[%clk
00:19:04]} {[%emt 00:00:53]} 31. Rc1 {[%clk 00:01:24]} {[%emt 00:00:38]} Rc5
{[%clk 00:14:09]} {[%emt 00:05:24]} 32. Rxc5 {[%clk 00:00:32]} {[%emt
00:01:23]} Bxc5 {[%clk 00:14:33]} {[%emt 00:00:05]} 33. Qe1 {[%clk 00:00:31]}
{[%emt 00:00:32]} Qf5 {[%clk 00:11:54]} {[%emt 00:03:07]} 34. Qe2 {[%clk
00:00:32]} {[%emt 00:00:30]} Qxf4 {[%clk 00:10:33]} {[%emt 00:01:50]} 35. e6
{[%clk 00:00:32]} {[%emt 00:00:32]} fxe6 {[%clk 00:09:51]} {[%emt 00:01:12]} 36.
Qxe6+ {[%clk 00:01:01]} {[%emt 00:00:01]} Kh7 {[%clk 00:09:42]} {[%emt
00:00:38]} 37. h5 {[%clk 00:00:33]} {[%emt 00:00:58]} gxh5 {[%emt 00:01:48]} 38.
Rh3 {[%emt 00:00:01]} Qg5 {[%clk 00:06:47]} {[%emt 00:01:36]} 39. Qe4+ {[%clk
00:00:39]} {[%emt 00:00:25]} g6 {[%clk 00:06:11]} {[%emt 00:01:04]} 40. g4
{[%clk 00:00:40]} {[%emt 00:00:30]} Kg7 {[%clk 00:04:39]} {[%emt 00:02:02]} 41.
Bh4 {[%clk 00:00:33]} {[%emt 00:00:37]} Qxg4 {[%clk 00:04:17]} {[%emt
00:00:51]} 42. Qe5+ {[%clk 00:00:49]} {[%emt 00:00:15]} Kg8 {[%clk 00:03:19]}
{[%emt 00:01:27]} 43. Qxc5 {[%clk 00:00:51]} {[%emt 00:00:30]} Qxh3 {[%clk
00:02:21]} {[%emt 00:01:27]} 44. Bxd8 {[%clk 00:01:17]} {[%emt 00:00:05]} Qd3+
{[%clk 00:02:10]} {[%emt 00:00:40]} 45. Kc1 {[%clk 00:01:38]} {[%emt 00:00:10]}
Qe3+ {[%clk 00:01:42]} {[%emt 00:00:57]} 46. Kd1 {[%clk 00:02:04]} {[%emt
00:00:04]} Qf3+ {[%clk 00:01:32]} {[%emt 00:00:39]} 47. Kd2 {[%clk 00:02:30]}
{[%emt 00:00:04]} Qe3+ {[%clk 00:01:11]} {[%emt 00:00:52]} 48. Kd1 {[%clk
00:02:59]} {[%emt 00:00:01]} Qd3+ {[%clk 00:01:13]} {[%emt 00:00:28]} 49. Kc1
{[%clk 00:03:20]} {[%emt 00:00:10]} Qe3+ {[%clk 00:01:27]} {[%emt 00:00:15]} 50.
Kd1 {[%clk 00:03:49]} {[%emt 00:00:02]} Qf3+ {[%clk 00:01:36]} {[%emt
00:00:19]} 51. Kd2 {[%clk 00:04:09]} {[%emt 00:00:11]} Qf4+ {[%clk 00:00:49]}
{[%emt 00:01:17]} 52. Kd1 {[%clk 00:03:39]} {[%emt 00:01:00]} Qf3+ {[%emt
00:00:24]} 1/2-1/2

[Event "Elite Hotels Open 2023"]
[Site "Elite Stadshotellet, Kungsgatan 6, Vaxjo, Sweden"]
[Date "2023.02.12"]
[Round "7.7"]
[White "Lindborg, Patrik"]
[Black "Bellon Lopez, Juan Manuel"]
[Result "0-1"]
[TimeControl "15 minutes + 5 seconds per move from move one (Round 1 - 4) / 90 minutes + 30 seconds per move from move one (Round 5 - 8)"]
[BlackTitle "GM"]
[WhiteFideId "1707507"]
[BlackFideId "2200031"]
[WhiteElo "2184"]
[BlackElo "2303"]

1. d4 {[%clk 01:30:46]} {[%emt 00:00:14]} Nf6 {[%clk 01:30:49]} {[%emt
00:00:11]} 2. Nf3 {[%clk 01:31:08]} {[%emt 00:00:08]} c5 {[%clk 01:31:08]}
{[%emt 00:00:11]} 3. d5 {[%clk 01:29:37]} {[%emt 00:02:02]} d6 {[%clk
01:31:31]} {[%emt 00:00:07]} 4. c4 {[%clk 01:23:17]} {[%emt 00:06:50]} b5
{[%clk 01:31:47]} {[%emt 00:00:13]} 5. cxb5 {[%emt 00:03:21]} a6 {[%clk
01:32:07]} {[%emt 00:00:10]} 6. bxa6 {[%clk 01:19:49]} {[%emt 00:01:08]} g6
{[%clk 01:31:56]} {[%emt 00:00:41]} 7. Nc3 {[%emt 00:10:12]} Bxa6 {[%clk
01:29:02]} {[%emt 00:00:05]} 8. e4 {[%clk 01:13:35]} {[%emt 00:00:20]} Bxf1
{[%clk 01:29:27]} {[%emt 00:00:05]} 9. Kxf1 {[%clk 01:14:01]} {[%emt 00:00:05]}
Bg7 {[%emt 00:00:33]} 10. h3 {[%clk 01:14:07]} O-O {[%clk 01:30:05]} {[%emt
00:00:13]} 11. Kg1 {[%clk 01:14:27]} {[%emt 00:00:10]} Nbd7 {[%clk 01:27:46]}
{[%emt 00:02:48]} 12. Kh2 {[%clk 01:13:54]} {[%emt 00:01:03]} Qb6 {[%clk
01:25:32]} {[%emt 00:02:44]} 13. Re1 {[%clk 01:12:51]} {[%emt 00:01:33]} Rfb8
{[%clk 01:25:26]} {[%emt 00:00:36]} 14. Kg1 {[%clk 01:08:13]} {[%emt 00:05:07]}
Ne8 {[%clk 01:18:42]} {[%emt 00:07:14]} 15. Re2 {[%clk 01:05:50]} {[%emt
00:02:53]} Qa6 {[%clk 01:14:38]} {[%emt 00:04:34]} 16. Rc2 {[%clk 00:54:03]}
{[%emt 00:12:18]} Nc7 {[%clk 01:09:21]} {[%emt 00:05:47]} 17. a4 {[%clk
00:42:35]} {[%emt 00:11:59]} Rb4 {[%clk 01:03:16]} {[%emt 00:06:34]} 18. Bd2
{[%clk 00:31:55]} {[%emt 00:11:10]} Nb6 {[%clk 00:55:04]} {[%emt 00:08:43]} 19.
e5 {[%clk 00:26:27]} {[%emt 00:05:58]} Nc4 {[%clk 00:38:24]} {[%emt 00:17:09]}
20. exd6 {[%clk 00:25:11]} {[%emt 00:01:47]} exd6 {[%clk 00:36:56]} {[%emt
00:01:58]} 21. Nb5 {[%clk 00:23:56]} {[%emt 00:01:44]} Rxb5 {[%clk 00:32:37]}
{[%emt 00:04:50]} 22. Rxc4 {[%clk 00:24:05]} {[%emt 00:00:20]} Rxb2 {[%clk
00:32:46]} {[%emt 00:00:21]} 23. Rac1 {[%clk 00:23:10]} {[%emt 00:01:25]} Nxd5
{[%clk 00:28:30]} {[%emt 00:04:46]} 24. Bg5 {[%clk 00:22:39]} {[%emt 00:01:01]}
Nb4 {[%clk 00:21:15]} {[%emt 00:07:45]} 25. Ne1 {[%clk 00:20:07]} {[%emt
00:03:03]} Na2 {[%clk 00:18:29]} {[%emt 00:03:16]} 26. R1c2 {[%clk 00:19:30]}
{[%emt 00:01:07]} Rxc2 {[%clk 00:17:43]} {[%emt 00:01:16]} 27. Rxc2 {[%clk
00:16:59]} {[%emt 00:03:00]} Nc3 {[%clk 00:15:17]} {[%emt 00:02:55]} 28. Qf3
{[%clk 00:16:34]} {[%emt 00:00:56]} Re8 {[%clk 00:15:25]} {[%emt 00:00:22]} 29.
Rxc3 {[%clk 00:14:08]} {[%emt 00:02:57]} Rxe1+ {[%clk 00:15:45]} {[%emt
00:00:10]} 30. Kh2 {[%clk 00:14:35]} {[%emt 00:00:02]} Be5+ {[%clk 00:12:03]}
{[%emt 00:04:11]} 31. Bf4 {[%clk 00:13:40]} {[%emt 00:01:27]} Qxa4 {[%clk
00:11:53]} {[%emt 00:00:40]} 32. Bxe5 {[%clk 00:13:22]} {[%emt 00:00:48]} Rxe5
{[%clk 00:12:18]} {[%emt 00:00:04]} 33. Ra3 {[%clk 00:13:40]} {[%emt 00:00:12]}
Qe4 {[%clk 00:11:17]} {[%emt 00:01:30]} 34. Qf6 {[%clk 00:13:37]} {[%emt
00:00:34]} Re6 {[%clk 00:10:28]} {[%emt 00:01:16]} 35. Qd8+ {[%clk 00:13:11]}
{[%emt 00:00:59]} Kg7 {[%clk 00:10:27]} {[%emt 00:00:31]} 36. Rf3 {[%clk
00:12:36]} {[%emt 00:01:05]} Qe5+ {[%clk 00:10:17]} {[%emt 00:00:39]} 37. Kg1
{[%clk 00:11:55]} {[%emt 00:01:12]} c4 {[%clk 00:07:25]} {[%emt 00:03:22]} 38.
Qc7 {[%clk 00:11:36]} {[%emt 00:00:50]} Rf6 {[%clk 00:07:08]} {[%emt 00:00:46]}
39. Rxf6 {[%clk 00:11:39]} {[%emt 00:00:27]} Qxf6 {[%clk 00:07:31]} {[%emt
00:00:06]} 40. Qxc4 {[%clk 00:12:00]} {[%emt 00:00:10]} Qa1+ {[%clk 00:07:50]}
{[%emt 00:00:10]} 41. Kh2 {[%clk 00:12:23]} {[%emt 00:00:08]} Qe5+ {[%clk
00:08:16]} {[%emt 00:00:03]} 42. Kg1 {[%clk 00:11:19]} {[%emt 00:01:34]} d5
{[%clk 00:08:38]} {[%emt 00:00:09]} 43. Qc5 {[%clk 00:11:18]} {[%emt 00:00:31]}
Qe1+ {[%clk 00:08:51]} {[%emt 00:00:17]} 44. Kh2 {[%clk 00:11:46]} {[%emt
00:00:02]} Qe4 {[%clk 00:09:10]} {[%emt 00:00:10]} 45. f3 {[%clk 00:10:22]}
{[%emt 00:01:55]} Qf4+ {[%clk 00:08:55]} {[%emt 00:00:43]} 46. Kg1 {[%clk
00:10:22]} {[%emt 00:00:31]} d4 {[%clk 00:09:17]} {[%emt 00:00:08]} 47. Kf1
{[%clk 00:10:29]} {[%emt 00:00:23]} h5 {[%clk 00:08:54]} {[%emt 00:00:54]} 48.
Ke2 {[%clk 00:09:26]} {[%emt 00:01:33]} Qe3+ {[%clk 00:09:16]} {[%emt
00:00:08]} 49. Kf1 {[%clk 00:09:54]} {[%emt 00:00:02]} h4 {[%clk 00:09:17]}
{[%emt 00:00:28]} 50. Qc7 {[%clk 00:08:29]} {[%emt 00:01:56]} d3 {[%clk
00:07:23]} {[%emt 00:02:24]} 51. Qc3+ {[%clk 00:08:42]} {[%emt 00:00:16]} Kg8
{[%clk 00:04:55]} {[%emt 00:02:59]} 52. Qc8+ {[%clk 00:09:08]} {[%emt
00:00:04]} Kh7 {[%clk 00:05:08]} {[%emt 00:00:16]} 53. Qc7 {[%clk 00:09:23]}
{[%emt 00:00:15]} Qe2+ {[%clk 00:05:17]} {[%emt 00:00:22]} 54. Kg1 {[%clk
00:09:51]} {[%emt 00:00:02]} Qe1+ {[%clk 00:05:39]} {[%emt 00:00:05]} 0-1

[Event "Elite Hotels Open 2023"]
[Site "Elite Stadshotellet, Kungsgatan 6, Vaxjo, Sweden"]
[Date "2023.02.12"]
[Round "7.8"]
[White "Strom-Engdahl, Alexander"]
[Black "Wagner, Stephan"]
[Result "1/2-1/2"]
[TimeControl "15 minutes + 5 seconds per move from move one (Round 1 - 4) / 90 minutes + 30 seconds per move from move one (Round 5 - 8)"]
[WhiteFideId "1741586"]
[BlackFideId "1613251"]
[WhiteElo "2097"]
[BlackElo "2264"]

1. d4 {[%clk 01:28:47]} {[%emt 00:02:12]} Nf6 {[%clk 01:30:54]} {[%emt
00:00:07]} 2. Nf3 {[%clk 01:28:31]} {[%emt 00:00:44]} e6 {[%clk 01:29:56]}
{[%emt 00:01:31]} 3. Bf4 {[%clk 01:28:50]} {[%emt 00:00:10]} b6 {[%clk
01:28:24]} {[%emt 00:02:02]} 4. e3 {[%clk 01:29:03]} {[%emt 00:00:17]} Bb7
{[%clk 01:28:28]} {[%emt 00:00:26]} 5. h3 {[%clk 01:29:23]} {[%emt 00:00:10]}
Be7 {[%clk 01:20:48]} {[%emt 00:08:10]} 6. Nbd2 {[%clk 01:28:52]} {[%emt
00:01:00]} O-O {[%clk 01:20:56]} {[%emt 00:00:22]} 7. Bd3 {[%clk 01:28:13]}
{[%emt 00:01:09]} Nd5 {[%clk 01:14:56]} {[%emt 00:06:31]} 8. Bh2 {[%clk
01:26:52]} {[%emt 00:01:50]} f5 {[%clk 01:15:19]} {[%emt 00:00:07]} 9. c3
{[%clk 01:22:16]} {[%emt 00:05:07]} Bd6 {[%clk 01:09:38]} {[%emt 00:06:12]} 10.
Qc2 {[%clk 01:15:33]} {[%emt 00:07:12]} Bxh2 {[%clk 01:05:47]} {[%emt
00:04:21]} 11. Rxh2 {[%clk 01:15:41]} {[%emt 00:00:21]} Ba6 {[%clk 01:02:40]}
{[%emt 00:03:38]} 12. O-O-O {[%clk 01:13:37]} {[%emt 00:02:33]} Bxd3 {[%clk
00:54:07]} {[%emt 00:09:03]} 13. Qxd3 {[%clk 01:13:45]} {[%emt 00:00:24]} Nc6
{[%clk 00:54:21]} {[%emt 00:00:15]} 14. g4 {[%clk 01:10:39]} {[%emt 00:03:36]}
Kh8 {[%clk 00:29:51]} {[%emt 00:25:00]} 15. Rg1 {[%clk 01:03:06]} {[%emt
00:08:02]} Qf6 {[%clk 00:23:05]} {[%emt 00:07:16]} 16. Rhg2 {[%clk 00:54:36]}
{[%emt 00:09:00]} g6 {[%clk 00:23:11]} {[%emt 00:00:25]} 17. h4 {[%clk
00:53:30]} {[%emt 00:01:37]} Rae8 {[%clk 00:14:14]} {[%emt 00:09:26]} 18. h5
{[%clk 00:49:30]} {[%emt 00:04:29]} fxg4 {[%clk 00:12:38]} {[%emt 00:02:06]} 19.
Rxg4 {[%clk 00:49:12]} {[%emt 00:00:47]} gxh5 {[%clk 00:12:04]} {[%emt
00:01:05]} 20. Rg5 {[%clk 00:47:32]} {[%emt 00:02:09]} Rg8 {[%clk 00:10:23]}
{[%emt 00:02:12]} 21. Rxh5 {[%clk 00:46:27]} {[%emt 00:01:36]} Rxg1+ {[%clk
00:10:35]} {[%emt 00:00:18]} 22. Nxg1 {[%clk 00:46:55]} {[%emt 00:00:02]} Qf7
{[%clk 00:10:31]} {[%emt 00:00:34]} 23. Rh2 {[%clk 00:45:26]} {[%emt 00:01:58]}
1/2-1/2

[Event "Elite Hotels Open 2023"]
[Site "Elite Stadshotellet, Kungsgatan 6, Vaxjo, Sweden"]
[Date "2023.02.12"]
[Round "7.9"]
[White "Rasti, Arvin"]
[Black "Ask, Josef"]
[Result "1-0"]
[TimeControl "15 minutes + 5 seconds per move from move one (Round 1 - 4) / 90 minutes + 30 seconds per move from move one (Round 5 - 8)"]
[BlackTitle "FM"]
[WhiteFideId "1741160"]
[BlackFideId "1704583"]
[WhiteElo "2211"]
[BlackElo "2169"]

1. d4 {[%clk 01:30:55]} {[%emt 00:00:05]} Nf6 {[%clk 01:30:51]} {[%emt
00:00:08]} 2. Nf3 {[%clk 01:31:15]} {[%emt 00:00:11]} d6 {[%clk 01:31:02]}
{[%emt 00:00:18]} 3. c4 {[%clk 01:31:24]} {[%emt 00:00:22]} g6 {[%clk
01:31:16]} {[%emt 00:00:16]} 4. g3 {[%clk 01:31:11]} {[%emt 00:00:43]} Bg7
{[%clk 01:31:36]} {[%emt 00:00:09]} 5. Bg2 {[%clk 01:31:35]} {[%emt 00:00:07]}
O-O {[%clk 01:32:00]} {[%emt 00:00:06]} 6. O-O {[%clk 01:31:57]} {[%emt
00:00:08]} Nc6 {[%clk 01:32:19]} {[%emt 00:00:12]} 7. Nc3 {[%clk 01:32:11]}
{[%emt 00:00:16]} Bf5 {[%clk 01:32:30]} {[%emt 00:00:18]} 8. Ne1 {[%clk
01:30:39]} {[%emt 00:02:03]} e5 {[%clk 01:30:47]} {[%emt 00:02:12]} 9. d5
{[%clk 01:30:44]} {[%emt 00:00:26]} Ne7 {[%clk 01:30:08]} {[%emt 00:01:08]} 10.
e4 {[%clk 01:30:16]} {[%emt 00:00:58]} Bd7 {[%clk 01:29:29]} {[%emt 00:01:08]}
11. Nd3 {[%clk 01:30:07]} {[%emt 00:00:40]} Ne8 {[%clk 01:26:11]} {[%emt
00:03:49]} 12. c5 {[%clk 01:27:17]} {[%emt 00:03:19]} f5 {[%clk 01:25:38]}
{[%emt 00:01:03]} 13. cxd6 {[%clk 01:26:34]} {[%emt 00:01:14]} cxd6 {[%clk
01:26:02]} {[%emt 00:00:06]} 14. f4 {[%clk 01:23:04]} {[%emt 00:04:00]} Qb6+
{[%clk 01:24:41]} {[%emt 00:01:50]} 15. Kh1 {[%clk 01:23:01]} {[%emt 00:00:33]}
fxe4 {[%clk 01:23:09]} {[%emt 00:02:02]} 16. Nxe4 {[%clk 01:22:14]} {[%emt
00:01:18]} Nxd5 {[%clk 01:20:45]} {[%emt 00:02:54]} 17. fxe5 {[%clk 01:12:44]}
{[%emt 00:09:59]} Rxf1+ {[%clk 01:15:37]} {[%emt 00:05:38]} 18. Qxf1 {[%clk
01:13:12]} {[%emt 00:00:02]} dxe5 {[%clk 01:14:17]} {[%emt 00:01:50]} 19. Ng5
{[%clk 01:11:42]} {[%emt 00:02:00]} Ndf6 {[%clk 01:06:00]} {[%emt 00:08:47]} 20.
Nxe5 {[%clk 01:09:20]} {[%emt 00:02:53]} Bf5 {[%clk 01:04:08]} {[%emt
00:02:22]} 21. Qc4+ {[%clk 01:08:58]} {[%emt 00:00:52]} 1-0